Cogmind - Beta 13 @@@ ROGUE MODE // 2024.04.22 @ 12:40:57 Player: Darch Result: Destroyed by X-67 Chaingunner with Heavy Machine Gun Performance ------------- Evolutions (4) 2000 Regions Visited (6) 1200 Robots Destroyed (10) 50 Value Destroyed (158) 158 Prototype IDs (1) 20 Alien Tech Used (0) 0 Bonus (0) 0 TOTAL SCORE: 3428 Bonus ------- None Cogmind --------- Core Integrity 0/850 Matter 145/300 Energy 100/100 System Corruption 7% Temperature Cool (0) Movement Core (50) Location -6/Factory Parts ------- > --- POWER (2) -------- (None) > --- PROPULSION (5) --- (None) > --- UTILITY (6) ------ (None) > --- WEAPON (2) ------- (None) > --- INVENTORY (5) ---- Advanced ECM Suite Proton Missile Launcher Improved Datajack Peak State ------------ > --- POWER ------------ Light Angular Momentum Engine > --- PROPULSION ------- Flight Unit Flight Unit VTOL Module > --- UTILITY ---------- Improved Sensor Array Advanced Sensor Array Terrain Scanner Advanced Terrain Scan Processor System Shield System Shield > --- WEAPON ----------- Improved Datajack > --- INVENTORY -------- Improved Sensor Array Advanced ECM Suite Advanced Assault Cannon Proton Missile Launcher Proton Missile Launcher [Rating: 32] Favorites ----------- Power Light Ion Engine Engine Light Ion Engine Propulsion Flight Unit Treads Light Treads Wheel Wheel Flight Unit Flight Unit Utility System Shield Device Terrain Scanner Storage Small Storage Unit Processor Advanced Terrain Scan Processor Hackware System Shield Weapon Particle Cannon Energy Gun Heavy EM Pulse Gun Energy Cannon Particle Cannon Ballistic Gun Assault Rifle Ballistic Cannon Light Cannon Launcher Proton Missile Launcher Special Melee Weapon Improved Datajack Build | -11 -10 -9 -9 -8 -7 -6 ------- Run | Yrd Mat Mat Min Mat Fac Fac Slots Evolved 8 | . . 2 . 2 2 2 Power 1 | . . . . . 1 . Propulsion 3 | . . 2 . . 1 . Utility 4 | . . . . 2 . 2 Weapon . | . . . . . . . Parts Attached 37 | 7 8 4 3 7 3 5 Power 3 | 1 . . 1 . . 1 Engine 3 | 1 . . 1 . . 1 Core . | . . . . . . . Reactor . | . . . . . . . Propulsion 11 | 3 2 2 . 3 1 . Treads 2 | 2 . . . . . . Leg . | . . . . . . . Wheel 1 | 1 . . . . . . Hover . | . . . . . . . Flight 8 | . 2 2 . 3 1 . Utility 11 | 1 1 2 1 3 . 3 Device 7 | . 1 1 1 2 . 2 Storage 1 | 1 . . . . . . Processor 1 | . . . . . . 1 Hackware 2 | . . 1 . 1 . . Protection . | . . . . . . . Artifact . | . . . . . . . Weapon 12 | 2 5 . 1 1 2 1 Energy Gun 3 | . 2 . . 1 . . Energy Cannon 2 | . 1 . 1 . . . Ballistic Gun 3 | 2 1 . . . . . Ballistic Cannon 2 | . 1 . . . . 1 Launcher 1 | . . . . . 1 . Special Weapon . | . . . . . . . Impact Weapon . | . . . . . . . Slashing Weapon . | . . . . . . . Piercing Weapon . | . . . . . . . Special Melee Weapon 1 | . . . . . 1 . Unidentified Prototypes 1 | . . . . 1 . . Parts Lost 14 | . . 7 . 1 . 6 Power 1 | . . 1 . . . . Propulsion 6 | . . 4 . . . 2 Utility 6 | . . 1 . 1 . 4 Weapon 1 | . . 1 . . . . Highest Loss Streak 7 | . . 7 . 1 . 6 To Critical Strikes . | . . . . . . . Average Slot Usage (%) 62 | . 72 71 42 59 67 60 Engine 9 | . 14 11 10 9 7 5 Treads 3 | . 14 . . . . . Flight 14 | . 12 31 . 10 22 17 Device 10 | . . 6 11 15 15 15 Storage 1 | . 7 . . . . . Processor 1 | . . . . . . 5 Hackware 10 | . . 11 11 18 15 12 Energy Cannon 2 | . . . 10 6 . . Ballistic Gun 3 | . 15 . . . . . Ballistic Cannon 2 | . 5 11 . . . . Special Melee Weapon 1 | . . . . . 6 2 Naked Turns 14 | . . . . . . 14 Heaviest Build 15 | 13 13 9 8 9 6 15 Greatest Support 40 | 40 40 16 3 12 12 12 Greatest Overweight (x) 4 | 4 2 1 2 2 . 3 Average Overweight (x) . | . . . 2 . . . Largest Inventory Capacity 8 | 8 8 5 5 5 5 5 Average Capacity 5 | 7 6 5 5 5 5 5 Most Carried 5 | 2 5 5 4 2 4 5 Average Carried 2 | 1 3 4 2 . 1 4 Final Capacity 8 | 8 5 5 5 5 5 5 Final Carried 5 | 2 5 5 2 1 4 3 Class Distribution -------------------- 29% | Mutant 26% | Hacker-Scout 17% | Sprinter 17% | Hacker-Mutant 8% | Hacker-Sprinter Dominant Class ---------------- Sprinter | -10/Materials Sprinter | -9/Materials Mutant | -9/Mines Hacker-Mutant | -8/Materials Hacker-Sprinter | -7/Factory Hacker-Scout | -6/Factory Resources | -11 -10 -9 -9 -8 -7 -6 ----------- Run | Yrd Mat Mat Min Mat Fac Fac Matter Collected 427 | 270 100 4 . 46 . 7 Remotely . | . . . . . . . Salvage Created 165 | . 73 46 . 46 . . Parts 22 | . 6 10 . 6 . . Haulers Intercepted . | . . . . . . . Recyclers Shooed . | . . . . . . . Parts Field Recycled . | . . . . . . . Retrieved Matter . | . . . . . . . Parts Self-Destructed . | . . . . . . . Prevented . | . . . . . . . Kills | -11 -10 -9 -9 -8 -7 -6 ------- Run | Yrd Mat Mat Min Mat Fac Fac Combat Hostiles Destroyed 10 | . 2 5 . 3 . . Guns 2 | . 2 . . . . . Cannons 8 | . . 5 . 3 . . Classes Destroyed 2 | . 1 1 . . . . Swarmer 8 | . . 5 . 3 . . Grunt 2 | . 2 . . . . . Best Kill Streak 5 | . 2 5 . 3 . . Combat Bots Only 5 | . 2 5 . 3 . . Max Kills in Single Turn 1 | . 1 1 . 1 . . Gunslinging . | . . . . . . . Exploded . | . . . . . . . Melee . | . . . . . . . Uniques/NPCs Destroyed . | . . . . . . . Combat | -11 -10 -9 -9 -8 -7 -6 -------- Run | Yrd Mat Mat Min Mat Fac Fac Hostile Shots Fired 208 | . 18 74 . 39 . 77 Missed 81 | . 12 36 . 13 . 20 Damage Taken 1755 | . 66 392 . 219 . 1078 Core 998 | . . 101 . 38 . 859 Absorbed by Shields . | . . . . . . . Core Remaining (%) 93 | 100 100 . 74 93 100 . Volleys Fired 27 | . 5 14 . 7 . 1 Largest 2 | . 2 1 . 1 . 1 Hottest 68 | . 40 35 . 68 . 48 Shots Fired 32 | . 10 14 . 7 . 1 Gun 10 | . 10 . . . . . Cannon 22 | . . 14 . 7 . 1 Launcher . | . . . . . . . Special . | . . . . . . . Kinetic 25 | . 10 14 . . . 1 Thermal 7 | . . . . 7 . . Explosive . | . . . . . . . Electromagnetic . | . . . . . . . Robot Hit Streak 12 | . 5 12 . 2 . 3 Robot Miss Streak 3 | . 1 2 . 3 . . Penetration Max . | . . . . . . . Secondary Targets . | . . . . . . . Shots Hit Robots 27 | . 8 11 . 3 1 4 Core Hits 11 | . 4 4 . 3 . . Critical Kills . | . . . . . . . Critical Parts Destroyed . | . . . . . . . Critical Strikes . | . . . . . . . Melee Attacks 4 | . . . . . 1 3 Impact . | . . . . . . . Slashing . | . . . . . . . Piercing . | . . . . . . . Sneak Attacks 4 | . . . . . 1 3 Combat Hostiles . | . . . . . . . Follow-up Attacks . | . . . . . . . Damage Inflicted 330 | . 89 154 . 62 . 25 Guns 89 | . 89 . . . . . Cannons 241 | . . 154 . 62 . 25 Explosions . | . . . . . . . Melee . | . . . . . . . Ramming . | . . . . . . . Kinetic 268 | . 89 154 . . . 25 Thermal 62 | . . . . 62 . . Explosive . | . . . . . . . Electromagnetic . | . . . . . . . Impact . | . . . . . . . Slashing . | . . . . . . . Piercing . | . . . . . . . Highest Corruption 7 | . . . . . . 7 Average Corruption 6 | . . . . . . 6 Corruption Purged . | . . . . . . . Corruption Blocked . | . . . . . . . Effects 1 | . . . . . . 1 Message Errors 1 | . . . . . . 1 Overload Shots . | . . . . . . . Overflow Damage 15 | . . 15 . . . . Projectiles 15 | . . 15 . . . . Explosions . | . . . . . . . Melee . | . . . . . . . Knockbacks 5 | . . 4 . . . 1 Impact . | . . . . . . . Kinetic 4 | . . 3 . . . 1 Secondary 1 | . . 1 . . . . Self-Inflicted Damage . | . . . . . . . Shots . | . . . . . . . Rammed . | . . . . . . . Targets Rammed . | . . . . . . . Kicked . | . . . . . . . Crushed . | . . . . . . . Highest Temperature 72 | . 6 23 . 72 . . Average Temperature 18 | . 6 6 . 28 . . Received Heat Transfer 189 | . 27 114 . 36 . 12 Siege Activations . | . . . . . . . Robots Corrupted . | . . . . . . . Combat Hostiles . | . . . . . . . Parts Fried . | . . . . . . . Impact Corruptions . | . . . . . . . Robots Melted . | . . . . . . . Combat Hostiles . | . . . . . . . Parts Melted . | . . . . . . . Heat Transferred 111 | . . . . 111 . . Parts Sabotaged . | . . . . . . . Parts Stolen . | . . . . . . . Parts Stripped . | . . . . . . . Power Chain Reactions . | . . . . . . . Alert | -11 -10 -9 -9 -8 -7 -6 ------- Run | Yrd Mat Mat Min Mat Fac Fac Peak Influence 188 | . 55 188 63 169 88 69 Initial 76 | . . 22 63 24 76 42 Average 58 | . 28 101 63 81 80 60 Maximum Alert Level . | . . . . . . . Low Security (%) 100 | 100 100 100 100 100 100 100 Level 1 . | . . . . . . . Level 2 . | . . . . . . . Level 3 . | . . . . . . . Level 4 . | . . . . . . . Level 5 . | . . . . . . . High Security . | . . . . . . . Max Security . | . . . . . . . Squads Dispatched 5 | . . 1 . 1 . 3 Investigation 2 | . . . . 1 . 1 Extermination . | . . . . . . . Reinforcement 3 | . . 1 . . . 2 Assault . | . . . . . . . Garrison . | . . . . . . . Intercept . | . . . . . . . Searches Triggered . | . . . . . . . Construction Impeded . | . . . . . . . Haulers Reinforced . | . . . . . . . Active Scanning Responses . | . . . . . . . Cargo Convoy Interrupts . | . . . . . . . Stealth | -11 -10 -9 -9 -8 -7 -6 --------- Run | Yrd Mat Mat Min Mat Fac Fac Distress Signals 4 | . 2 1 . 1 . . Communications Jammed . | . . . . . . . Distress Signals . | . . . . . . . Times Spotted 50 | . 11 22 . 9 . 8 Peak Tracking Total 12 | . 8 12 . 5 . 8 Tactical Retreats 3 | . . 1 . 1 . 1 Traps | -11 -10 -9 -9 -8 -7 -6 ------- Run | Yrd Mat Mat Min Mat Fac Fac Traps Triggered . | . . . . . . . Indirectly . | . . . . . . . Trap Hack Attempts . | . . . . . . . Triggered . | . . . . . . . Disarmed . | . . . . . . . Reprogrammed . | . . . . . . . Reused . | . . . . . . . Traps Extracted . | . . . . . . . Installed . | . . . . . . . Triggered . | . . . . . . . Objects Rigged 1 | . . 1 . . . . Machines | -11 -10 -9 -9 -8 -7 -6 ---------- Run | Yrd Mat Mat Min Mat Fac Fac Machines Disabled 1 | . . 1 . . . . Max in Single Turn 1 | . . 1 . . . . Machines Repaired . | . . . . . . . Machines Dismantled . | . . . . . . . Machines Sabotaged . | . . . . . . . Overloaded Fab Kills . | . . . . . . . Hacking | -11 -10 -9 -9 -8 -7 -6 --------- Run | Yrd Mat Mat Min Mat Fac Fac Machines Accessed 15 | . 1 3 . 4 3 4 Terminals 6 | . . 2 . 2 . 2 Fabricators 1 | . . . . . . 1 Repair Stations 2 | . . . . 1 1 . Recycling Units 4 | . 1 1 . . 1 1 Scanalyzers 2 | . . . . 1 1 . Garrison Access . | . . . . . . . Total Hacks 39 | . 4 9 . 11 3 12 Successful 23 | . 3 6 . 6 3 5 Failed 16 | . 1 3 . 5 . 7 Catastrophic 4 | . . . . 2 . 2 Database Lockouts . | . . . . . . . Manual 32 | . 4 9 . 5 3 11 Terminals 21 | . . 8 . 8 . 5 Fabricators 5 | . . . . . . 5 Repair Stations 2 | . . . . 1 1 . Recycling Units 8 | . 4 1 . . 1 2 Scanalyzers 3 | . . . . 2 1 . Garrison Access . | . . . . . . . Terminal Hacks 3 | . . . . 2 . 1 Record 2 | . . . . 2 . . Open DSF 1 | . . . . . . 1 Fabricator Hacks . | . . . . . . . Repair Station Hacks . | . . . . . . . Recycling Unit Hacks . | . . . . . . . Scanalyzer . | . . . . . . . Garrison Access Hacks . | . . . . . . . Unauthorized Hacks 20 | . 3 6 . 4 3 4 Terminals 8 | . . 5 . 2 . 1 Track 2 | . . 1 . 1 . . Assimilate 1 | . . 1 . . . . Botnet 2 | . . . . 1 . 1 Detonate 1 | . . 1 . . . . Disrupt 1 | . . 1 . . . . Operators 1 | . . 1 . . . . Fabricators 1 | . . . . . . 1 Liberate 1 | . . . . . . 1 Repair Stations 2 | . . . . 1 1 . Mechanics 2 | . . . . 1 1 . Recycling Units 7 | . 3 1 . . 1 2 Monitor 3 | . 1 . . . 1 1 Reject 1 | . 1 . . . . . Recyclers 2 | . 1 . . . . 1 Mask 1 | . . 1 . . . . Scanalyzers 2 | . . . . 1 1 . Researchers 2 | . . . . 1 1 . Garrison Access . | . . . . . . . Data Cores Recovered . | . . . . . . . Used . | . . . . . . . Hacking Detections 5 | . 1 1 . 1 . 2 Full Trace Events 3 | . 1 . . 1 . 1 Feedback Events . | . . . . . . . Feedback Blocked . | . . . . . . . Robot Schematics Acquired . | . . . . . . . Robots Built . | . . . . . . . Authchips . | . . . . . . . Time . | . . . . . . . Total Robot Build Rating . | . . . . . . . Part Schematics Acquired . | . . . . . . . Parts Built . | . . . . . . . Authchips . | . . . . . . . Time . | . . . . . . . Total Part Build Rating . | . . . . . . . Parts Repaired . | . . . . . . . Time . | . . . . . . . Parts Recycled . | . . . . . . . Recycled Matter . | . . . . . . . Retrieved Matter . | . . . . . . . Retrieved Components . | . . . . . . . Parts Scanalyzed . | . . . . . . . Part Schematics Acquired . | . . . . . . . Parts Damaged . | . . . . . . . Bothacking | -11 -10 -9 -9 -8 -7 -6 ------------ Run | Yrd Mat Mat Min Mat Fac Fac Used RIF Installer . | . . . . . . . Robots Hacked 4 | . . . . . 1 3 Non-combat 4 | . . . . . 1 3 Combat . | . . . . . . . Robot Hacks Applied 4 | . . . . . 1 3 parse_system 1 | . . . . . 1 . no_distress 3 | . . . . . . 3 Relay Couplers Released . | . . . . . . . Fabnet Peak Effective % . | . . . . . . . Robots Rewired . | . . . . . . . Allies Hacked . | . . . . . . . Hacks Repelled . | . . . . . . . Allies | -11 -10 -9 -9 -8 -7 -6 -------- Run | Yrd Mat Mat Min Mat Fac Fac Total Allies . | . . . . . . . Largest Group . | . . . . . . . Highest-Rated Group . | . . . . . . . Highest-Rated Ally . | . . . . . . . Total Orders . | . . . . . . . Ally Attacks . | . . . . . . . Total Damage . | . . . . . . . Kills . | . . . . . . . Allies Corrupted . | . . . . . . . Allies Melted . | . . . . . . . Intel | -11 -10 -9 -9 -8 -7 -6 ------- Run | Yrd Mat Mat Min Mat Fac Fac Robot Analysis Total . | . . . . . . . Derelict Logs Recovered 1 | . . . 1 . . . Drone Launches . | . . . . . . . Drone Recoveries . | . . . . . . . Exploration | -11 -10 -9 -9 -8 -7 -6 ------------- Run | Yrd Mat Mat Min Mat Fac Fac Turns Passed 1125 | 67 243 88 119 180 99 329 Spaces Moved 1528 | 37 284 159 78 275 278 417 Core 161 | 15 1 6 78 42 . 19 Treads 80 | 22 58 . . . . . Legs . | . . . . . . . Wheels . | . . . . . . . Hover . | . . . . . . . Flight 1287 | . 225 153 . 233 278 398 Fastest Speed 26 | 50 32 26 150 34 32 32 Average Speed 51 | 151 58 32 150 55 32 37 Slowest Speed 250 | 250 160 115 150 150 37 200 Overloaded Moves . | . . . . . . . Propulsion Burnouts . | . . . . . . . Robots Hopped 6 | . 2 . . 4 . . Cave-ins Triggered . | . . . . . . . Exploration Rate (%) 17 | 4 29 22 25 23 8 10 Regions Visited 6 Branch Regions 1 Pre-discovered Areas . | . . . . . . . Known Exits Taken . | . . . . . . . Unknown Exits Taken 6 | 1 1 1 1 1 1 . Scrap Searched . | . . . . . . . Spaces Dug . | . . . . . . . Terrain Destroyed . | . . . . . . . Melee . | . . . . . . . Projectile . | . . . . . . . AOE . | . . . . . . . Terrain Rammed . | . . . . . . . Walls Destroyed . | . . . . . . . Machines Disabled . | . . . . . . . Actions | -11 -10 -9 -9 -8 -7 -6 --------- Run | Yrd Mat Mat Min Mat Fac Fac Total 1820 | 45 351 179 80 290 287 588 Wait 193 | . 39 1 . . . 153 Move 1510 | 36 279 158 77 266 277 417 Hop 6 | . 2 . . 4 . . Pick Up 14 | 1 3 2 . 1 4 3 Fast Attach 26 | 7 8 2 . 4 2 3 Attach 11 | . . 2 3 3 1 2 Detach 11 | 1 5 . . 3 1 1 Swap . | . . . . . . . Drop 18 | . 10 . . 2 1 5 Fire 27 | . 5 14 . 7 . 1 Melee 4 | . . . . . 1 3 Ram . | . . . . . . . Kick . | . . . . . . . Crush . | . . . . . . . Escape Stasis . | . . . . . . . Rewire . | . . . . . . . Trap . | . . . . . . . Miscellaneous . | . . . . . . . Route ------- -11/Scrapyard -10/Materials -9/Materials -9/Mines -8/Materials -7/Factory -6/Factory History --------- Turn | Location | Event 25 | -11/Scrapyard | Discovered new exit (range 15) 68 | -11/Scrapyard | Entered Materials 306 | -10/Materials | Discovered new exit (range 15) 311 | -10/Materials | Entered another Materials area 311 | -9/Materials | Evolved 2 slots: Propulsion x2 393 | -9/Materials | Discovered new exit (range 15) 399 | -9/Materials | Entered Mines 402 | -9/Mines | Met a Derelict bent on vengeance 429 | -9/Mines | Lost 7 parts (1p4n1u1w) 480 | -9/Mines | Discovered new exit (range 14) 483 | -9/Mines | Learned Materials trap positions 518 | -9/Mines | Entered Materials 518 | -8/Materials | Evolved 2 slots: Utility x2 519 | -8/Materials | Loaded intel: 20 trap records 693 | -8/Materials | Discovered new exit (range 15) 698 | -8/Materials | Entered Factory 698 | -7/Factory | Evolved 2 slots: Power x1, Propulsion x1 788 | -7/Factory | Discovered new exit (range 16) 797 | -7/Factory | Entered another Factory area 797 | -6/Factory | Evolved 2 slots: Utility x2 930 | -6/Factory | Identified exit to DSF 1116 | -6/Factory | Core integrity fell below 50% 1122 | -6/Factory | Core integrity fell below 20% 1126 | -6/Factory | Destroyed by X-67 Chaingunner with Heavy Machine Gun Last Messages --------------- 01090_ System corrupted by crushing effect (+5). 01090_ P-60 Hacker knocked back. 01092_ VTOL Module severed. 01097_ Lgt. Angular Momentum Engine severed. 01103_ RO ELVBECWJH8L<>FXU4RT,I 01107_ C-17 Slicer knocked back. 01109_ Penetrated by Slug. 01109_ Triangulator destroyed. 01109_ Critical hit (Blast). 01109_ Knocked back. 01109_ Adv. Assault Cannon severed. 01110_ System Shield severed. 01110_ System Shield destroyed. 01112_ C-17 Slicer destroyed. 01112_ Adv. Terrain Scan Processor severed. 01115_ Knocked back. 01118_ K-01 Serf collects debris. 01119_ Knocked back. 01120_ Acquired 6 matter. 01122_ K-01 Serf collects debris. Map ----- +----------------------------------------------------+ | #?#?#??# # #??????????????????????????????? | | ######## # #"?????????????????????????????? | | + = #"?????????????????????????????? | | ########## #??????????????????????????????? | | ????? ???# =#??????????????????????????????? | | ????????## #?? ???????????????????????????? | | ? ?? ???# #??????????????????????????????? | | ????? ??# #############?????????????????????????? | | ???????## = """" #?????????????????????????? | | ???? ??# # ** ""R" #?????????????????????????? | | ????????## # "" " #?????????????????????????? | | ?????????# # """ #?????????????????????????? | | ?????????# # """R #?????????????????????????? | | ?????????# # """ #?????????????????????????? | | ?????????# # [ #?????????????????????????? | | ????????? ######+######?????????????????????????? | | ????????? #???# #??????????????????????????? | | ????????? ????# #??????????????????????????? | | ????????? ????# ########???????????????????? | | ?? ?????? ????# ????????????? | | ????????? ???## ##x########???????????????????? | | ????????? ???# # #?????????????????????? | | ????????# !### H # #?????????????????????? | | ????????? ! ; ]% %#?????????????????????? | | ? ??????????### ;p%kc #?????????????????????? | | ??????????????# ; Yc@ #?????????????????????? | | ??????????????###+### #?????????????????????? | | ????????????????????########?????????????????????? | | ?????????????????????????????????????????????????? | | ?????????????????????????????????????????????????? | | ?????????????????????????????????????????????????? | | ?????????????????????????????????????????????????? | | ?????????????????????????????????????????????????? | | ?????????????????????????????????????????????????? | | ?????????????????????????????????????????????????? | | ?????????????????????????????????????????????????? | | ?????????????????????????????????????????????????? | | ?????????????????????????????????????????????????? | | ?????????????????????????????????????????????????? | | ?????????????????????????????????????????????????? | | ?????????????????????????????????????????????????? | | ?????????????????????????????????????????????????? | | ?????????????????????????????????????????????????? | | ?????????????????????????????????????????R???????? | | ?????????????????????????????????????????????????? | | ?????????????????????????????????????????????????? | | ?????????????????????????????????????????????????? | | ?????????????????????????????????????????????????? | | ?????????????????????????????????????????????????? | | ?????????????????????????????????????????????????? | +----------------------------------------------------+ Best States ------------- Heat Dissipation 37 Energy Generation 23 Energy Capacity 250 Matter Stores 300 Matter Capacity 300 Sight Range 16 Robot Scan Range 16 Terrain Scan Range 14 Terrain Scan Density 210 Evasion (%) 64 Recoil Reduction 2 Defensive Hacking 20 Item Schematics ----------------- None Robot Schematics ------------------ None Fabricated ------------ Nothing Alien Tech Used ----------------- None Achievements -------------- root@ Challenges ------------ None Game ------ Seed GaussFocalBeam Manual? 0 Play Time 00:44:20 Cumulative 12.9 hours Start 2024.04.21 @ 10:23:38 End 2024.04.22 @ 12:40:57 Sessions 4 Manual Loads 0 Difficulty Rogue Special Mode None Game No. 20 Rogue 19 Adventurer 1 Explorer 0 Win Type - Total 0 Types 0/0/0/0/0/0/0/0/0 Lore% 9 Gallery% 15 Achievement% 17 Wizard Run 0 Options --------- Layout 1 ASCII 0 Keyboard 1 Movement Vi Keybinds 0 Fullscreen 2 Font 24/Smallcaps Map View 50x40 Zoom Use 0% Tactical HUD 1 Map Filters NONE Filters NONE Steam 1 RUN: c68e5a72-ddb6-4e76-92b8-cd52e05d0dd5